lending/lending_fUSD_20250621
["ID","MTS","AMOUNT","RATE_DAILY","PERIOD"]
[366836921,1750499440384,-383.0,0.000241,2]
[366836922,1750499440393,-376.0,0.000241,2]
[366836923,1750499440403,-769.0,0.000241,2]
[366836924,1750499440414,-238.0,0.000241,2]
[366836925,1750499440423,-150.0,0.00024109,2]
[366836926,1750499440433,-301.69,0.0002411,2]
[366836927,1750499440443,-455.52,0.0002411,2]
[366836928,1750499440452,-455.52,0.0002411,2]
[366836929,1750499440462,-150.0,0.0002411,2]
[366836930,1750499440471,-150.0,0.0002411,2]
[366836931,1750499440481,-455.52,0.0002411,2]
[366836932,1750499440491,-455.52,0.0002411,2]
[366836933,1750499440501,-713.2,0.0002411,2]
[366836934,1750499440511,-150.0,0.0002411,2]
[366836935,1750499440522,-150.0,0.0002411,2]
[366836936,1750499440532,-455.52,0.0002411,2]
[366836937,1750499440540,-170.74,0.0002411,2]
[366836938,1750499440550,-150.0,0.0002411,2]
[366836939,1750499440560,-790.75,0.0002411,2]
[366836940,1750499440569,-216.65,0.0002411,2]
[366836941,1750499440579,-5158.43884684,0.00024122,2]
[366836942,1750499440588,-3335.0,0.00024122,2]
[366836943,1750499440598,-946.0,0.00024122,2]
[366836944,1750499440608,-155.406,0.00024122,2]
[366836945,1750499440618,-814.0,0.00024122,2]
[366836946,1750499440627,-638.0,0.00024122,2]
[366836947,1750499440637,-1161.0,0.00024122,2]
[366836948,1750499440647,-332.249,0.00024122,2]
[366836949,1750499440656,-1278.0,0.00024122,2]
[366836950,1750499440665,-955.378,0.00024122,2]
[366836952,1750499440675,-2005.0,0.00024122,2]
[366836954,1750499440685,-559.0,0.00024122,2]
[366836957,1750499440695,-591.0,0.00024122,2]
[366836959,1750499440704,-1676.0,0.00024122,2]
[366836960,1750499440714,-290.209,0.00024122,2]
[366836963,1750499440724,-289.254,0.00024122,2]
[366836964,1750499440734,-7135.0,0.00024122,2]
[366836966,1750499440743,-4095.0,0.00024122,2]
[366836968,1750499440752,-855.0,0.00024122,2]
[366836970,1750499440762,-150.0,0.00024127,2]
[366836972,1750499440771,-150.0,0.00024129,2]
[366836974,1750499440780,-150.0,0.00024132,2]
[366836976,1750499440790,-776.38803417,0.00024136,2]
[366836977,1750499440798,-167.15,0.00024142,2]
[366836978,1750499440807,-150.0,0.00024152,2]
[366836979,1750499440816,-150.0,0.00024154,2]
[366836980,1750499440825,-5158.43884684,0.00024159,2]
[366836981,1750499440834,-162.0,0.00024164,7]
[366836982,1750499440844,-150.0,0.00024172,2]
[366836983,1750499440853,-150.0,0.00024179,2]
[366836984,1750499440861,-150.0,0.00024185,2]
[366836985,1750499440870,-5158.43884684,0.00024195,2]
[366836986,1750499440879,-150.0,0.00024197,2]
[366836987,1750499440888,-151.0,0.0002421,7]
[366836989,1750499440897,-227.016492,0.0002421,7]
[366836991,1750499440907,-776.38803417,0.00024213,2]
[366836993,1750499440916,-500.0,0.00024214,2]
[366836995,1750499440925,-150.0,0.00024219,2]
[366836997,1750499440934,-5158.43884684,0.00024232,2]
[366836999,1750499440944,-473.0,0.00024234,2]
[366837001,1750499440953,-150.0,0.00024243,2]
[366837002,1750499440963,-300.0,0.00024247,2]
[366837003,1750499440972,-150.0,0.00024247,2]
[366837004,1750499440982,-150.0,0.00024247,2]
[366837005,1750499440991,-150.0,0.00024247,2]
[366837006,1750499441001,-304.1,0.00024247,2]
[366837007,1750499441010,-708.84,0.00024247,2]
[366837008,1750499441020,-170.89,0.00024247,2]
[366837009,1750499441029,-170.94,0.00024247,2]
[366837010,1750499441038,-170.94,0.00024247,2]
[366837011,1750499441048,-170.94,0.00024247,2]
[366837012,1750499441057,-150.0,0.00024251,2]
[366837013,1750499441068,-5158.43884684,0.00024269,2]
[366837014,1750499441077,-150.0,0.00024277,2]
[366837015,1750499441086,-150.0,0.00024284,2]
[366837016,1750499441097,-150.0,0.0002429,2]
[366837017,1750499441106,-776.38803417,0.00024291,2]
[366837018,1750499441115,-201.0,0.000243,6]
[366837019,1750499441125,-5158.43884684,0.00024306,2]
[366837020,1750499441134,-528.60262636,0.00024307,2]
[366837021,1750499441144,-150.0,0.00024309,2]
[366837022,1750499441153,-1000.0,0.00024317,2]
[366837023,1750499441162,-5158.43884684,0.00024342,2]
[366837024,1750499441172,-150.0,0.00024355,2]
[366837025,1750499441181,-776.38803417,0.00024368,2]
[366837026,1750499441193,-150.0,0.0002437,2]
[366837027,1750499441203,-5158.43884684,0.00024379,2]
[366837028,1750499441212,-150.0,0.00024394,2]
[366837029,1750499441222,-15797.01863965,0.000244,2]
[366837030,1750499441232,-150.0,0.00024412,2]
[366837031,1750499441243,-150.0,0.00024415,2]
[366837032,1750499441253,-5158.43884684,0.00024416,2]
[366837033,1750499441262,-150.0,0.00024417,2]
[366837034,1750499441273,-150.0,0.00024418,2]
[366837035,1750499441283,-150.0,0.0002442,2]
[366837036,1750499441292,-150.0,0.0002444,2]
[366837037,1750499441302,-1000.0,0.00024443,2]
[366837038,1750499441311,-150.0,0.00024445,2]
[366837039,1750499441321,-776.38803417,0.00024445,2]
[366837040,1750499441331,-150.0,0.00024446,2]
[366837041,1750499441340,-5158.43884684,0.00024453,2]
[366837042,1750499441350,-150.0,0.00024459,2]
[366837043,1750499441361,-1000.0,0.00024459,2]
[366837044,1750499441371,-1621.0,0.00024471,2]
[366837045,1750499441381,-150.0,0.00024479,2]
[366837046,1750499441390,-5158.43884684,0.0002449,2]
[366837047,1750499441401,-150.0,0.00024514,2]
[366837048,1750499441410,-776.38803417,0.00024523,2]
[366837049,1750499441419,-5158.43884684,0.00024526,2]
[366837050,1750499441429,-150.0,0.00024553,2]
[366837051,1750499441439,-5158.43884684,0.00024563,2]
[366837052,1750499441448,-150.0,0.00024565,2]
[366837053,1750499441458,-150.0,0.00024568,2]
[366837054,1750499441467,-150.0,0.00024578,2]
[366837055,1750499441477,-181.91852178,0.00024581,2]
[366837056,1750499441486,-2535.33448343,0.0002459,11]
[366837057,1750499441496,-150.0,0.0002459,2]
[366837058,1750499441505,-1000.0,0.00024592,2]
[366837059,1750499441515,-5260.71331112,0.00024599,2]
[366837060,1750499441525,-1193.74875718,0.00024599,2]
[366837061,1750499441534,-163.6784675,0.00024599,4]
[366837062,1750499441544,-776.15161204,0.00024599,2]
[366837063,1750499441553,-151.0,0.000246,7]
[366837064,1750499441563,-151.0,0.000246,7]
[366837065,1750499441573,-353.17756261,0.000246,2]
[366837066,1750499441582,-776.38803417,0.000246,2]
[366837067,1750499441592,-5158.43884684,0.000246,2]
[366837068,1750499441602,-150.0,0.00024605,2]
[366837069,1750499441611,-150.0,0.00024617,2]
[366837070,1750499441620,-1000.0,0.00024627,2]
[366837071,1750499441630,-150.0,0.00024631,2]
[366837072,1750499441639,-168.3888056,0.00024637,2]
[366837073,1750499441649,-231.28369723,0.00024637,2]
[366837074,1750499441659,-150.0,0.00024644,2]
[366837075,1750499441668,-150.0,0.00024651,2]
[366837076,1750499441678,-151.0,0.00024657,7]
[366837077,1750499441687,-300.0,0.00024657,2]
[366837078,1750499441696,-1000.0,0.00024658,2]
[366837079,1750499441706,-151.0,0.00024658,7]
[366837080,1750499441716,-151.0,0.00024658,7]
[366837081,1750499441900,-150.0,0.00024673,2]
[366837082,1750499441911,-150.0,0.00024674,2]
[366837083,1750499441921,-150.0,0.00024684,2]
[366837084,1750499441931,-518994.8659646,0.00024687,4]
[366837085,1750499441940,-151.0,0.00024687,7]
[366837086,1750499441950,-151.0,0.00024687,7]
[366837087,1750499441959,-151.0,0.00024687,7]
[366837088,1750499441968,-151.0,0.00024687,7]
[366837089,1750499441978,-151.0,0.00024687,7]
[366837090,1750499441987,-151.0,0.00024687,7]
[366837091,1750499441997,-151.0,0.00024687,7]
[366837092,1750499442007,-151.0,0.00024687,7]
[366837093,1750499442017,-151.0,0.00024687,7]
[366837094,1750499442028,-151.657771,0.00024687,7]
[366837095,1750499442038,-180.82222,0.00024687,7]
[366837096,1750499442048,-180.82222,0.00024687,7]
[366837097,1750499442057,-151.0,0.00024687,7]
[366837098,1750499442067,-151.0,0.00024687,7]
[366837099,1750499442077,-151.0,0.00024687,7]
[366837100,1750499442087,-270.534799,0.00024687,7]
[366837101,1750499442097,-270.534799,0.00024687,7]
[366837102,1750499442107,-150.0,0.00024687,2]
[366837103,1750499442116,-193.8103074,0.00024687,2]
[366837104,1750499442126,-5000.0,0.0002469,5]
[366837105,1750499442136,-5000.0,0.0002469,6]
[366837106,1750499442146,-5000.0,0.0002469,7]
[366837107,1750499442155,-5000.0,0.0002469,8]
[366837108,1750499442165,-5000.0,0.0002469,9]
[366837109,1750499442175,-5000.0,0.0002469,21]
[366837110,1750499442184,-151.677795,0.0002469,7]
[366837111,1750499442196,-151.0,0.0002469,7]
[366837112,1750499442206,-417.053784,0.0002469,7]
[366837113,1750499442215,-417.053784,0.0002469,7]
[366837114,1750499442226,-151.0,0.0002469,7]
[366837115,1750499442236,-151.0,0.0002469,7]
[366837116,1750499442247,-151.0,0.0002469,7]
[366837117,1750499442256,-151.0,0.0002469,7]
[366837118,1750499442267,-150.0,0.00024692,2]
[366837119,1750499442278,-151.0,0.00024697,7]
[366837120,1750499442288,-151.0,0.00024697,7]
[366837121,1750499442298,-151.0,0.00024697,7]
[366837122,1750499442308,-151.0,0.00024698,7]
[366837123,1750499442317,-151.0,0.00024698,7]
[366837124,1750499442326,-180.82222,0.00024698,7]
[366837125,1750499442335,-180.82222,0.00024698,7]
[366837126,1750499442345,-151.0,0.00024698,7]
[366837127,1750499442355,-666.0,0.00024699,2]
[366837128,1750499442366,-666.0,0.00024699,2]
[366837129,1750499442375,-666.0,0.00024699,2]
[366837130,1750499442385,-666.0,0.00024699,2]
[366837131,1750499442394,-300.0,0.00024699,10]
[366837132,1750499442405,-666.0,0.00024699,2]
[366837133,1750499442416,-300.0,0.00024699,10]
[366837134,1750499442425,-376.47204601,0.00024699,10]
[366837135,1750499442435,-300.0,0.00024699,10]
[366837136,1750499442445,-300.0,0.00024699,10]
[366837137,1750499442454,-300.0,0.00024699,10]
[366837138,1750499442464,-300.0,0.00024699,10]
[366837139,1750499442473,-300.0,0.00024699,10]
[366837140,1750499442483,-300.0,0.00024699,10]
[366837141,1750499442493,-306.16015505,0.00024699,10]
[366837142,1750499442503,-300.0,0.00024699,10]
[366837143,1750499442512,-300.0,0.00024699,10]
[366837144,1750499442522,-382.0508114,0.00024699,2]
[366837145,1750499442532,-54324.13627298,0.00024699,2]
[366837146,1750499442542,-51148.55474462,0.00024699,2]
[366837147,1750499442551,-151.0,0.00024699,7]
[366837148,1750499442560,-225.804174,0.00024699,7]
[366837149,1750499442570,-151.0,0.00024699,7]
[366837150,1750499442580,-151.0,0.00024699,7]
[366837151,1750499442590,-999.53557,0.00024699,7]
[366837152,1750499442600,-999.53557,0.00024699,7]
[366837153,1750499442609,-186.576726,0.00024699,7]
[366837154,1750499442619,-186.576726,0.00024699,7]
[366837155,1750499442628,-265.487668,0.00024699,7]
[366837156,1750499442638,-371.056386,0.00024699,7]
[366837157,1750499442647,-371.056386,0.00024699,7]
[366837158,1750499442657,-151.0,0.00024699,7]
[366837159,1750499442667,-151.0,0.00024699,7]
[366837160,1750499442677,-151.0,0.00024699,7]
[366837161,1750499442686,-151.0,0.00024699,7]
[366837162,1750499442696,-151.0,0.00024699,7]
[366837163,1750499442706,-151.0,0.00024699,7]
[366837164,1750499442715,-153.006237,0.00024699,7]
[366837165,1750499442725,-150.0,0.00024699,2]
[366837166,1750499442735,-150.0,0.00024699,10]
[366837167,1750499442745,-32595.03694225,0.00024699,5]
[366837168,1750499442755,-2189109.9604423,0.00024699,5]
[366837169,1750499442791,-649.80842011,0.00024699,5]
[366837170,1750499442802,-3534.17470216,0.00024699,5]
[366837171,1750499442827,-605.30196727,0.00024699,5]
[366837235,1750499444603,-239.140402,0.00024047,2]
[366837236,1750499444613,-1163.93582081,0.00024699,5]
[366837237,1750499444881,-99454.0552212,0.00024699,5]
[366837238,1750499444953,-1643.33586845,0.00024699,5]
[366837239,1750499445041,-919.39818052,0.00024699,5]
[366837249,1750499447160,-885.0,0.00024122,2]
[366837250,1750499447170,-1624.16923208,0.00024699,5]
[366837251,1750499447247,-5618.80332547,0.00024699,5]
[366837252,1750499447293,-392.72164948,0.00024699,5]
[366837253,1750499447332,-330.55896795,0.00024699,5]
[366837254,1750499447344,-84262.52112124,0.00024699,5]
[366837255,1750499447457,-11256.56358123,0.00024699,5]
[366837256,1750499447469,-1372.47396499,0.00024699,5]
[366837257,1750499448794,-1227.56209426,0.00024699,5]
[366837258,1750499448805,-3137.0268239,0.00024699,5]
[366837259,1750499448818,-13805.80429558,0.00024699,5]
[366837260,1750499448982,-349.10044587,0.00024699,5]
[366837261,1750499448999,-949.27650002,0.00024699,5]
[366837262,1750499449013,-250.5216,0.00024699,5]
[366837263,1750499449031,-518.04777804,0.00024699,5]
[366837264,1750499449151,-656.90474624,0.00024699,5]
[366837265,1750499449163,-3863.27753915,0.00024699,5]
[366837266,1750499752959,-1082.0,0.00037607,60]
[366837267,1750499752987,-1082.0,0.00037607,60]
[366837268,1750499753015,-1082.0,0.00037607,60]
[366837269,1750499753043,-1082.0,0.00037607,60]
[366837270,1750499753072,-1086.0,0.00037607,60]
[366837271,1750499753099,-1082.0,0.00037607,60]
[366837272,1750499753126,-187.0,0.00037607,120]
[366837273,1750499753152,-266.93675645,0.00037607,60]
[366837274,1750499753178,-350.01547592,0.00037607,30]
[366837275,1750499753204,-209.6,0.00037607,30]
[366837276,1750499753235,-209.6,0.00037607,30]
[366837277,1750499753262,-238.47041093,0.00037607,60]
[366837278,1750499753289,-1521.14347573,0.00037607,120]
[366837279,1750499753315,-150.45205558,0.00037607,120]
[366837280,1750499753341,-444.25183835,0.00037607,120]
[366837281,1750499753368,-234.52284378,0.00037607,120]
[366837282,1750499753394,-498.27959963,0.00037607,30]
[366837283,1750499753421,-154.46299698,0.00037607,30]
[366837284,1750499753451,-169.01407183,0.00037607,30]
[366837285,1750499753481,-1623.88520818,0.00037607,120]
[366837286,1750499753507,-253.75411475,0.00037607,120]
[366837287,1750499753534,-2123.81532506,0.00037607,90]
[366837288,1750499753561,-4715.06798688,0.00037607,30]
[366837289,1750499753588,-221.59144074,0.00037607,120]
[366837290,1750499753616,-50000.0,0.00037607,30]
[366837291,1750499753644,-50000.0,0.00037607,31]
[366837292,1750499753671,-50000.0,0.00037607,32]
[366837293,1750499753699,-50000.0,0.00037607,33]
[366837294,1750499753729,-50000.0,0.00037607,34]
[366837295,1750499753757,-50000.0,0.00037607,35]
[366837296,1750499753786,-50000.0,0.00037607,36]
[366837297,1750499753813,-50000.0,0.00037607,37]
[366837298,1750499753841,-50000.0,0.00037607,38]
[366837299,1750499753868,-50000.0,0.00037607,39]
[366837300,1750499753895,-1080.0,0.00037607,30]
[366837301,1750499753923,-1080.0,0.00037607,30]
[366837302,1750499753951,-1080.0,0.00037607,30]
[366837303,1750499753978,-1080.0,0.00037607,30]
[366837304,1750499754005,-1080.0,0.00037607,30]
[366837305,1750499754033,-434.0796341,0.00037607,30]
[366837306,1750499754060,-1080.0,0.00037607,30]
[366837307,1750499754089,-2004.18,0.00037607,120]
[366837308,1750499754119,-952.25819105,0.00037607,120]
[366837309,1750499754147,-209.6,0.00037607,30]
[366837310,1750499754176,-330.45242491,0.00037607,120]
[366837311,1750499754203,-5000.0,0.00037607,120]
[366837312,1750499754230,-5855.04548657,0.00037607,120]
[366837313,1750499754257,-242.868289,0.00037607,120]
[366837314,1750499754284,-242.868289,0.00037607,120]
[366837315,1750499754311,-2320.733675,0.00037607,120]
[366837316,1750499754338,-2320.733675,0.00037607,120]
[366837317,1750499754366,-2320.733675,0.00037607,120]
[366837318,1750499754392,-2320.733675,0.00037607,120]
[366837319,1750499754418,-2320.733675,0.00037607,120]
[366837320,1750499754447,-2320.733675,0.00037607,120]
[366837321,1750499754474,-2320.733675,0.00037607,120]
[366837322,1750499754504,-2320.733675,0.00037607,120]
[366837323,1750499754539,-2320.733675,0.00037607,120]
[366837324,1750499754566,-2320.733675,0.00037607,120]
[366837325,1750499754593,-2320.733675,0.00037607,120]
[366837326,1750499754622,-2320.733675,0.00037607,120]
[366837327,1750499754651,-2320.733675,0.00037607,120]
[366837328,1750499754679,-2320.733675,0.00037607,120]
[366837329,1750499754707,-2320.733675,0.00037607,120]
[366837330,1750499754736,-2320.733675,0.00037607,120]
[366837331,1750499754765,-2320.733675,0.00037607,120]
[366837332,1750499755032,-2320.733675,0.00037607,120]
[366837333,1750499755061,-2320.733675,0.00037607,120]
[366837334,1750499755089,-2320.733675,0.00037607,120]
[366837335,1750499755116,-2320.733675,0.00037607,120]
[366837336,1750499755143,-2320.733675,0.00037607,120]
[366837337,1750499755170,-2320.733675,0.00037607,120]
[366837338,1750499755196,-2320.733675,0.00037607,120]
[366837339,1750499755222,-1555.421543,0.00037607,120]
[366837340,1750499755247,-1555.421543,0.00037607,120]
[366837341,1750499755273,-1555.421543,0.00037607,120]
[366837342,1750499755298,-1555.421543,0.00037607,120]
[366837343,1750499755323,-1555.421543,0.00037607,120]
[366837344,1750499755348,-1555.421543,0.00037607,120]
[366837345,1750499755375,-1555.421543,0.00037607,120]
[366837346,1750499755401,-1555.421543,0.00037607,120]
[366837347,1750499755427,-1555.421543,0.00037607,120]
[366837348,1750499755459,-1555.421543,0.00037607,120]
[366837349,1750499755486,-1555.421543,0.00037607,120]
[366837350,1750499755513,-1555.421543,0.00037607,120]
[366837351,1750499755541,-1555.421543,0.00037607,120]
[366837352,1750499755569,-1555.421543,0.00037607,120]
[366837353,1750499755596,-1555.421543,0.00037607,120]
[366837354,1750499755623,-1555.421543,0.00037607,120]
[366837355,1750499755649,-1555.421543,0.00037607,120]
[366837356,1750499755675,-1555.421543,0.00037607,120]
[366837357,1750499755702,-1555.421543,0.00037607,120]
[366837358,1750499755729,-1555.421543,0.00037607,120]
[366837359,1750499755755,-1555.421543,0.00037607,120]
[366837360,1750499755782,-1555.421543,0.00037607,120]
[366837361,1750499755810,-1555.421543,0.00037607,120]
[366837362,1750499755836,-1555.421543,0.00037607,120]
[366837363,1750499755863,-160.722234,0.00037607,120]
[366837364,1750499755890,-160.722234,0.00037607,120]
[366837365,1750499755917,-160.722234,0.00037607,120]
[366837366,1750499755943,-160.722234,0.00037607,120]
[366837367,1750499755969,-160.722234,0.00037607,120]
[366837368,1750499755996,-160.722234,0.00037607,120]
[366837369,1750499756025,-157.881523,0.00037607,120]
[366837370,1750499756053,-157.881523,0.00037607,120]
[366837371,1750499756080,-160.722234,0.00037607,120]
[366837372,1750499756106,-157.881523,0.00037607,120]
[366837373,1750499756134,-160.722234,0.00037607,120]
[366837374,1750499756160,-157.881523,0.00037607,120]
[366837375,1750499756186,-160.722234,0.00037607,120]
[366837376,1750499756214,-157.881523,0.00037607,120]
[366837377,1750499756241,-157.881523,0.00037607,120]
[366837378,1750499756269,-157.881523,0.00037607,120]
[366837379,1750499756295,-157.881523,0.00037607,120]
[366837380,1750499756321,-157.881523,0.00037607,120]
[366837381,1750499756347,-157.881523,0.00037607,120]
[366837382,1750499756373,-157.881523,0.00037607,120]
[366837383,1750499756399,-223.925957,0.00037607,120]
[366837384,1750499756427,-157.881523,0.00037607,120]
[366837385,1750499756458,-152.346874,0.00037607,120]
[366837386,1750499756486,-157.081978,0.00037607,120]
[366837387,1750499756513,-490.0,0.00037607,120]
[366837388,1750499756541,-490.0,0.00037607,120]
[366837389,1750499756567,-350.58388182,0.00037607,120]
[366837390,1750499756593,-490.0,0.00037607,120]
[366837391,1750499756623,-490.0,0.00037607,120]
[366837392,1750499756651,-490.0,0.00037607,120]
[366837393,1750499756680,-490.0,0.00037607,120]
[366837394,1750499756706,-490.0,0.00037607,120]
[366837395,1750499756733,-490.0,0.00037607,120]
[366837396,1750499756760,-490.0,0.00037607,120]
[366837397,1750499756787,-171.31926326,0.00037607,120]
[366837398,1750499756816,-490.0,0.00037607,120]
[366837399,1750499756843,-490.0,0.00037607,120]
[366837400,1750499756869,-490.0,0.00037607,120]
[366837401,1750499756895,-599.99091377,0.00037607,120]
[366837402,1750499756922,-490.0,0.00037607,120]
[366837403,1750499756948,-490.0,0.00037607,120]
[366837404,1750499756975,-490.0,0.00037607,120]
[366837405,1750499757000,-490.0,0.00037607,120]
[366837406,1750499757027,-497.54797135,0.00037607,120]
[366837407,1750499757054,-490.0,0.00037607,120]
[366837408,1750499757084,-490.0,0.00037607,120]
[366837409,1750499757114,-490.0,0.00037607,120]
[366837410,1750499757142,-490.0,0.00037607,120]
[366837411,1750499757168,-499.65342508,0.00037607,120]
[366837412,1750499757196,-490.0,0.00037607,120]
[366837413,1750499757223,-490.0,0.00037607,120]
[366837414,1750499757250,-490.0,0.00037607,120]
[366837415,1750499757280,-490.0,0.00037607,120]
[366837416,1750499757309,-211.01142697,0.00037607,120]
[366837417,1750499757340,-490.0,0.00037607,120]
[366837418,1750499757369,-490.0,0.00037607,120]
[366837419,1750499757397,-490.0,0.00037607,120]
[366837420,1750499757426,-581.29167271,0.00037607,120]
[366837421,1750499757457,-1000.0,0.00037607,120]
[366837422,1750499757485,-490.0,0.00037607,120]
[366837423,1750499757515,-490.0,0.00037607,120]
[366837424,1750499757543,-490.0,0.00037607,120]
[366837425,1750499757571,-510.39625846,0.00037607,120]
[366837426,1750499757599,-494.63475614,0.00037607,120]
[366837427,1750499757905,-490.0,0.00037607,120]
[366837428,1750499757933,-291.71173103,0.00037607,120]
[366837429,1750499757958,-490.0,0.00037607,120]
[366837430,1750499757983,-490.0,0.00037607,120]
[366837431,1750499758009,-281.06790044,0.00037607,120]
[366837432,1750499758034,-490.0,0.00037607,120]
[366837433,1750499758060,-490.0,0.00037607,120]
[366837434,1750499758085,-490.0,0.00037607,120]
[366837435,1750499758110,-490.0,0.00037607,120]
[366837436,1750499758136,-490.0,0.00037607,120]
[366837437,1750499758162,-490.0,0.00037607,120]
[366837438,1750499758188,-490.0,0.00037607,120]
[366837439,1750499758215,-490.0,0.00037607,120]
[366837440,1750499758242,-468.15925729,0.00037607,120]
[366837441,1750499758268,-491.83028237,0.00037607,120]
[366837442,1750499758294,-490.0,0.00037607,120]
[366837443,1750499758319,-490.0,0.00037607,120]
[366837444,1750499758345,-490.0,0.00037607,120]
[366837445,1750499758373,-490.54706714,0.00037607,120]
[366837446,1750499758402,-496.90320906,0.00037607,120]
[366837447,1750499758428,-490.0,0.00037607,120]
[366837448,1750499758456,-490.0,0.00037607,120]
[366837449,1750499758485,-280.0,0.00037607,120]
[366837450,1750499758513,-490.0,0.00037607,120]
[366837451,1750499758540,-480.66079609,0.00037607,120]
[366837452,1750499758567,-943.05,0.00037607,120]
[366837453,1750499758593,-943.05,0.00037607,120]
[366837454,1750499758620,-943.05,0.00037607,120]
[366837455,1750499758646,-490.0,0.00037607,120]
[366837456,1750499758672,-943.05,0.00037607,120]
[366837457,1750499758699,-492.27433665,0.00037607,120]
[366837458,1750499758725,-943.05,0.00037607,120]
[366837459,1750499758752,-943.05,0.00037607,120]
[366837460,1750499758779,-943.05,0.00037607,120]
[366837461,1750499758805,-943.05,0.00037607,120]
[366837462,1750499758832,-943.05,0.00037607,120]
[366837463,1750499758859,-943.05,0.00037607,120]
[366837464,1750499758884,-492.76055819,0.00037607,120]
[366837465,1750499758911,-943.05,0.00037607,120]
[366837466,1750499758939,-943.05,0.00037607,120]
[366837467,1750499758966,-943.05,0.00037607,120]
[366837468,1750499758993,-943.05,0.00037607,120]
[366837469,1750499759020,-943.05,0.00037607,120]
[366837470,1750499759048,-943.05,0.00037607,120]
[366837471,1750499759074,-491.49046999,0.00037607,120]
[366837472,1750499759100,-943.05,0.00037607,120]
[366837473,1750499759127,-943.05,0.00037607,120]
[366837474,1750499759155,-943.05,0.00037607,120]
[366837475,1750499759182,-943.05,0.00037607,120]
[366837476,1750499759210,-943.05,0.00037607,120]
[366837477,1750499759237,-943.05,0.00037607,120]
[366837478,1750499759264,-281.41142612,0.00037607,120]
[366837479,1750499759290,-943.05,0.00037607,120]
[366837480,1750499759315,-943.0859073,0.00037607,120]
[366837481,1750499759342,-490.0,0.00037607,120]
[366837482,1750499759371,-490.0,0.00037607,120]
[366837483,1750499759398,-490.0,0.00037607,120]
[366837484,1750499759426,-490.0,0.00037607,120]
[366837485,1750499759456,-490.0,0.00037607,120]
[366837486,1750499759484,-505.85901674,0.00037607,120]
[366837487,1750499759512,-490.0,0.00037607,120]
[366837488,1750499759541,-490.0,0.00037607,120]
[366837489,1750499759570,-281.51725666,0.00037607,120]
[366837490,1750499759597,-490.0,0.00037607,120]
[366837491,1750499759623,-490.0,0.00037607,120]
[366837492,1750499759649,-490.0,0.00037607,120]
[366837493,1750499759675,-493.22525965,0.00037607,120]
[366837494,1750499759701,-490.0,0.00037607,120]
[366837495,1750499759728,-490.0,0.00037607,120]
[366837496,1750499759756,-490.0,0.00037607,120]
[366837497,1750499759783,-490.0,0.00037607,120]
[366837498,1750499759809,-490.0,0.00037607,120]
[366837499,1750499759835,-490.0,0.00037607,120]
[366837500,1750499759861,-492.01768424,0.00037607,120]
[366837501,1750499759888,-490.0,0.00037607,120]
[366837502,1750499759914,-491.31800058,0.00037607,120]
[366837503,1750499759941,-492.61123991,0.00037607,120]
[366837504,1750499759965,-490.0,0.00037607,120]
[366837505,1750499759991,-405.92655153,0.00037607,120]
[366837506,1750499760018,-492.1280268,0.00037607,120]
[366837507,1750499760046,-490.0,0.00037607,120]
[366837508,1750499760072,-490.0,0.00037607,120]
[366837509,1750499760099,-238.07727006,0.00037607,120]
[366837510,1750499760126,-490.0,0.00037607,120]
[366837511,1750499760155,-490.0,0.00037607,120]
[366837512,1750499760182,-630.0,0.00037607,120]